bitfinex/quotes_ETHUSD_20241023
["timestamp","ask_amount","ask_price","bid_price","bid_amount"]
[1729678262390,5.60451136,2581.0,2580.7,0.475964]
[1729678263120,9.47909136,2581.0,2580.7,0.475964]
[1729678264117,3.87467,2580.9,2580.7,0.475964]
[1729678264424,5.60469136,2580.9,2580.7,0.475964]
[1729678264600,5.60469136,2580.9,2580.7,0.01]
[1729678266002,5.60478136,2580.8,2580.7,0.01]
[1729678266191,3.87491,2580.7,2580.5,0.01]
[1729678266410,1.73002136,2580.6,2580.5,0.01]
[1729678266615,5.60493136,2580.7,2580.5,0.01]
[1729678266789,1.73002136,2580.6,2580.5,0.01]
[1729678267188,5.60493136,2580.7,2580.5,0.01]
[1729678269124,1.73002136,2580.6,2580.5,0.01]
[1729678269626,5.60491136,2580.8,2580.5,0.473579]
[1729678270000,1.73002136,2580.7,2580.5,0.473579]
[1729678271118,5.60491136,2580.8,2580.5,0.473579]
[1729678271931,1.73002136,2580.8,2580.5,4.348779]
[1729678272229,3.87457,2581.0,2580.5,4.348779]
[1729678272230,1.73002136,2580.9,2580.5,4.348779]
[1729678272429,1.73002136,2580.9,2580.6,0.5099079]
[1729678272591,1.73002136,2580.8,2580.6,0.5099079]
[1729678272794,1.73002136,2580.9,2580.6,0.5099079]
[1729678272998,5.60464136,2580.9,2580.6,0.5099079]
[1729678274228,3.87433,2581.1,2580.7,0.8186]
[1729678274403,1.73002136,2581.0,2580.8,0.69335793]
[1729678274591,1.73002136,2581.0,2580.7,0.8186]
[1729678275026,1.73002136,2581.1,2580.7,4.69344]
[1729678275335,1.73002136,2581.1,2580.8,0.90783279]
[1729678275499,3.87418,2581.2,2580.8,0.90783279]
[1729678275500,1.73002136,2580.9,2580.8,0.90783279]
[1729678275832,1.73002136,2581.0,2580.7,4.69351]
[1729678279528,1.73002136,2580.9,2580.7,4.69351]
[1729678279730,1.73002136,2581.0,2580.7,4.69351]
[1729678279930,1.73002136,2580.9,2580.7,5.60134979]
[1729678280833,5.60486136,2580.8,2580.4,0.7628]
[1729678281040,1.73002136,2580.7,2580.4,0.7628]
[1729678281735,5.60486136,2580.8,2580.6,0.01]
[1729678282237,1.73002136,2580.8,2580.6,0.01]
[1729678283022,9.82530136,2581.0,2580.6,0.01]
[1729678283239,1.73002136,2580.9,2580.6,0.01]
[1729678283740,5.60464136,2580.9,2580.6,0.01]
[1729678284072,1.73002136,2580.9,2580.6,0.01]
[1729678293677,9.82521136,2581.0,2580.6,0.01]
[1729678294442,5.95066136,2581.0,2580.6,0.01]
[1729678294642,5.60456136,2581.0,2580.6,0.01]
[1729678295192,1.73002136,2580.8,2580.6,0.01]
[1729678295408,5.60463136,2580.9,2580.6,0.01]
[1729678297383,1.73002136,2580.9,2580.6,0.01]
[1729678300063,1.73002136,2580.8,2580.6,0.01]
[1729678302066,1.73002136,2580.9,2580.6,0.01]
[1729678302778,5.60474136,2580.9,2580.6,0.01]
[1729678302969,1.73002136,2580.8,2580.6,0.01]
[1729678303793,5.60474136,2580.9,2580.6,0.01]
[1729678305096,1.73002136,2580.7,2580.3,1.619232]
[1729678305255,5.60502136,2580.7,2580.2,4.70365]
[1729678305456,3.87513,2580.6,2580.2,4.70366]
[1729678305886,3.87513,2580.6,2580.2,0.828]
[1729678307288,3.87513,2580.6,2580.2,1.63329734]
[1729678312370,0.3461,2580.9,2580.5,0.7894]
[1729678312688,5.95081136,2580.9,2580.5,0.7894]
[1729678313963,1.73002136,2580.8,2580.5,0.7894]
[1729678314183,5.60481136,2580.8,2580.5,0.7894]
[1729678314397,1.73002136,2580.6,2580.4,0.01]
[1729678314598,9.47966136,2580.8,2580.4,0.01]
[1729678314904,5.60481136,2580.8,2580.4,0.01]
[1729678315493,5.60493136,2580.7,2580.4,0.01]
[1729678316807,3.87491,2580.7,2580.4,0.01]
[1729678317304,1.73002136,2580.8,2580.4,0.01]
[1729678317504,3.87492,2580.7,2580.4,0.01]
[1729678320771,5.60494136,2580.7,2580.4,0.01]
[1729678321973,3.87492,2580.7,2580.4,0.01]
[1729678322173,5.60494136,2580.7,2580.4,0.01]
[1729678322598,5.60480136,2580.8,2580.4,0.01]
[1729678322797,3.87469,2580.9,2580.4,2.20573636]
[1729678322988,3.87469,2580.9,2580.5,0.8201]
[1729678323715,3.0,2580.9,2580.5,0.8201]
[1729678323876,6.87473,2580.9,2580.5,1.51796817]
[1729678324072,3.8748,2580.8,2580.5,1.51796817]
[1729678324397,3.8748,2580.8,2580.5,0.8201]
[1729678326328,1.73002136,2580.7,2580.5,0.8201]
[1729678326506,5.60480136,2580.8,2580.5,0.8201]
[1729678326832,3.87478,2580.8,2580.5,0.8201]
[1729678327335,3.87492,2580.7,2580.5,0.8201]
[1729678329832,3.87478,2580.8,2580.6,0.01]
[1729678330598,5.60480136,2580.8,2580.6,0.01]
[1729678331427,9.47966136,2580.8,2580.6,0.01]
[1729678331605,5.60480136,2580.8,2580.6,0.01]
[1729678331806,5.60493136,2580.7,2580.6,0.01]
[1729678332514,3.87491,2580.7,2580.6,0.01]
[1729678332710,5.60480136,2580.8,2580.6,0.01]
[1729678332914,3.87478,2580.8,2580.6,0.01]
[1729678335340,7.74964,2580.8,2580.6,0.01]
[1729678335503,3.87478,2580.8,2580.6,0.01]
[1729678336136,3.87491,2580.7,2580.6,0.01]
[1729678336427,3.87478,2580.8,2580.6,0.01]
[1729678338410,7.74965,2580.8,2580.6,0.01]
[1729678338710,3.87478,2580.8,2580.6,0.01]
[1729678339949,3.87491,2580.7,2580.6,0.01]
[1729678353534,9.47967136,2580.8,2580.6,0.01]
[1729678354531,3.87477,2580.8,2580.6,0.01]
[1729678354864,7.74964,2580.8,2580.6,0.01]
[1729678355065,3.87477,2580.8,2580.6,0.01]
[1729678355371,3.87491,2580.7,2580.6,0.01]
[1729678358661,3.87477,2580.8,2580.6,0.01]
[1729678359067,3.87491,2580.7,2580.6,0.01]
[1729678359228,3.87477,2580.8,2580.6,0.01]
[1729678360765,3.87491,2580.7,2580.6,0.01]
[1729678372165,3.87491,2580.7,2580.2,1.619232]
[1729678372166,3.87542,2580.4,2580.2,1.619232]
[1729678372363,1.73002136,2580.3,2580.1,0.01]
[1729678372690,3.87566,2580.2,2580.1,0.01]
[1729678372989,5.60568136,2580.2,2580.1,0.01]
[1729678373897,3.87566,2580.2,2580.1,0.01]
[1729678374898,3.87553,2580.3,2580.1,0.01]
[1729678375189,7.75116,2580.3,2580.1,0.01]
[1729678375359,3.87553,2580.3,2580.1,0.01]
[1729678375773,3.87566,2580.2,2580.1,0.01]
[1729678380315,5.60541136,2580.4,2580.1,0.01]
[1729678380475,3.87558,2580.3,2580.1,0.01]
[1729678381176,5.60560136,2580.3,2580.1,0.01]
[1729678381921,5.60568136,2580.2,2580.1,0.01]
[1729678382070,3.87602,2580.0,2579.7,0.01]
[1729678382276,2.07612136,2580.2,2579.7,0.01]
[1729678382277,1.73002136,2579.8,2579.7,0.01]
[1729678383508,5.60628136,2579.8,2579.7,0.01]
[1729678384011,3.87626,2579.8,2579.7,0.01]
[1729678384509,3.8762,2579.9,2579.7,0.01]
[1729678385011,7.7524,2579.9,2579.7,0.01]
[1729678385412,3.8762,2579.9,2579.7,0.01]
[1729678385712,7.75241,2579.9,2579.7,0.01]
[1729678385914,3.87599,2580.0,2579.7,0.8157]
[1729678386213,3.87592,2580.1,2579.7,2.54572136]
[1729678386374,3.87597,2580.0,2579.7,0.8157]
[1729678389823,4.73002136,2580.2,2579.7,0.8157]
[1729678389824,3.87618,2579.9,2579.7,0.8157]
[1729678391591,3.87618,2579.9,2579.7,0.01]
[1729678391840,3.87611,2579.9,2579.7,0.01]
[1729678393134,7.75235,2579.9,2579.7,0.01]
[1729678394246,3.87611,2579.9,2579.7,0.01]
[1729678395337,3.87591,2580.1,2579.8,1.73002136]
[1729678395501,3.87558,2580.3,2580.0,1.74002136]
[1729678395927,3.87558,2580.3,2580.0,0.01]
[1729678396528,0.3461,2580.2,2580.0,0.01]
[1729678397315,4.22178,2580.2,2580.0,0.01]
[1729678397634,3.87568,2580.2,2580.0,0.01]
[1729678397836,3.87565,2580.3,2580.0,0.01]
[1729678399198,5.95149136,2580.4,2580.0,0.01]
[1729678399405,3.87573,2580.2,2580.0,0.01]
[1729678399841,7.75153,2580.2,2580.0,0.01]
[1729678400000,3.87573,2580.2,2580.0,0.01]
[1729678400402,3.87581,2580.1,2580.0,0.01]
[1729678400936,3.87581,2580.1,2579.8,0.7721]
[1729678401137,3.87604,2580.0,2579.8,0.7721]
[1729678404286,1.73002136,2579.9,2579.6,0.01]
[1729678404457,3.87622,2579.9,2579.8,0.01]
[1729678404657,5.60580136,2580.2,2579.8,0.01]
[1729678404849,3.87598,2580.0,2579.8,0.01]
[1729678407441,3.87578,2580.2,2579.8,1.74002136]
[1729678407786,3.87578,2580.2,2580.1,0.01]
[1729678407787,3.87566,2580.2,2580.1,0.01]
[1729678407979,3.87566,2580.2,2579.9,0.772]
[1729678408839,3.87566,2580.2,2580.1,0.01]
[1729678409887,3.87566,2580.2,2579.9,0.772]
[1729678410035,3.87566,2580.2,2580.1,0.01]
[1729678410240,3.87566,2580.2,2579.9,0.772]
[1729678411454,5.60568136,2580.2,2579.9,0.772]
[1729678411821,3.87566,2580.2,2580.1,0.01]
[1729678412076,3.87566,2580.2,2579.9,0.772]
[1729678412381,3.87566,2580.2,2579.9,0.01]
[1729678412577,5.60568136,2580.2,2579.9,0.01]
[1729678412764,3.87596,2580.0,2579.7,0.7871]
[1729678412965,5.60598136,2580.0,2579.7,0.7871]
[1729678413379,3.87621,2579.9,2579.7,0.01]
[1729678413549,5.60628136,2579.8,2579.5,0.7871]
[1729678414652,3.87612,2579.9,2579.5,0.7871]
[1729678416168,3.87612,2579.9,2579.5,4.6638]
[1729678416368,3.87612,2579.9,2579.5,0.7871]
[1729678416671,3.87612,2579.9,2579.5,2.51712136]
[1729678417156,5.60614136,2579.9,2579.5,0.7871]
[1729678417364,3.87612,2579.9,2579.5,0.7871]
[1729678420588,7.75232,2579.9,2579.5,0.7871]
[1729678421399,3.87612,2579.9,2579.5,2.51712136]
[1729678421581,3.87612,2579.9,2579.5,0.7871]
[1729678422355,7.75234,2579.9,2579.5,0.7871]
[1729678422904,3.87633,2579.8,2579.5,0.7871]
[1729678423504,5.60659136,2579.6,2579.5,0.01]
[1729678423703,3.87657,2579.6,2579.5,0.01]
[1729678424888,4.22243,2579.8,2579.5,0.01]
[1729678425091,3.87643,2579.7,2579.5,0.01]
[1729678425501,4.22243,2579.8,2579.5,0.01]
[1729678425674,7.75267,2579.8,2579.6,0.8282]
[1729678425877,3.87633,2579.8,2579.6,0.8282]
[1729678426263,7.75269,2579.8,2579.6,0.8282]
[1729678426904,3.87633,2579.8,2579.6,0.8282]
[1729678427905,7.75273,2579.8,2579.6,0.8282]
[1729678428670,3.87641,2579.7,2579.6,0.8282]
[1729678429087,3.87641,2579.7,2579.5,0.01]
[1729678429574,3.87633,2579.8,2579.5,0.01]
[1729678429774,3.8765,2579.7,2579.5,0.01]
[1729678443096,7.75303,2579.7,2579.5,0.01]
[1729678443302,3.87657,2579.6,2579.5,0.01]
[1729678445457,4.22237,2579.8,2579.5,0.01]
[1729678445586,3.87643,2579.7,2579.5,0.01]
[1729678464059,3.87657,2579.6,2579.5,0.01]
[1729678465659,3.87643,2579.7,2579.5,0.01]
[1729678467157,7.75295,2579.7,2579.5,0.01]
[1729678467365,7.75293,2579.7,2579.5,0.01]
[1729678469723,3.87643,2579.7,2579.5,0.01]
[1729678470326,7.75293,2579.7,2579.5,0.01]
[1729678470528,3.88536,2580.5,2579.5,0.01]
[1729678470529,0.3461,2580.0,2579.6,1.73002136]
[1729678470854,0.3461,2580.0,2579.7,2.54202136]
[1729678470855,3.87598,2580.0,2579.7,2.54202136]
[1729678471021,3.87598,2580.0,2579.7,0.812]
[1729678472956,7.75205,2580.0,2579.7,0.812]
[1729678473465,3.87598,2580.0,2579.7,0.812]
[1729678473821,7.75203,2580.0,2579.7,0.812]
[1729678474136,3.87598,2580.0,2579.7,0.812]
[1729678474724,7.75203,2580.0,2579.7,0.812]
[1729678475158,3.87598,2580.0,2579.7,0.812]
[1729678475951,3.87583,2580.1,2579.7,3.1838945]
[1729678476275,3.87583,2580.1,2579.8,1.73002136]
[1729678477078,7.75177,2580.1,2579.8,1.73002136]
[1729678477941,7.75177,2580.1,2579.7,3.1838945]
[1729678478284,7.75177,2580.1,2579.8,1.73002136]
[1729678478443,7.75177,2580.1,2579.7,3.1838945]
[1729678479185,3.87597,2580.0,2579.7,1.45387314]
[1729678480868,3.87583,2580.1,2579.7,3.1838945]
[1729678481186,3.87597,2580.0,2579.7,1.45387314]
[1729678482347,3.87597,2580.0,2579.7,0.812]
[1729678484303,3.87612,2579.9,2579.7,0.812]
[1729678485571,3.87612,2579.9,2579.5,4.69169]
[1729678486156,1.73002136,2580.0,2579.8,0.01]
[1729678486157,3.87597,2580.0,2579.8,0.01]
[1729678487068,3.87583,2580.1,2579.8,0.8151]
[1729678491468,7.75178,2580.1,2579.8,0.8151]
[1729678492177,3.87599,2580.0,2579.8,0.8151]
[1729678494269,5.60601136,2580.0,2579.8,0.8151]
[1729678494608,2.07612136,2579.9,2579.6,0.01]
[1729678494905,1.73002136,2580.0,2579.6,0.7989]
[1729678495068,3.87612,2579.9,2579.6,0.7989]
[1729678496565,3.87574,2580.2,2579.8,0.01]
[1729678497067,3.87574,2580.2,2579.9,0.7774]
[1729678498805,5.95178136,2580.3,2579.9,0.7774]
[1729678499010,6.87565,2580.3,2580.0,0.01]
[1729678499196,3.87568,2580.2,2580.0,0.01]
[1729678500094,4.22191,2580.1,2579.8,0.01]
[1729678500467,6.87563,2580.3,2579.8,0.01]
[1729678500671,6.87563,2580.3,2579.9,0.7911]
[1729678500672,3.87567,2580.2,2579.9,0.7911]
[1729678501490,3.87584,2580.1,2579.9,0.7911]
[1729678501796,3.87568,2580.2,2579.9,0.7911]
[1729678506018,3.87584,2580.1,2579.9,0.7911]
[1729678506182,5.60570136,2580.2,2579.9,0.7911]
[1729678506384,3.87583,2580.1,2579.9,0.7911]
[1729678506821,3.87568,2580.2,2579.9,0.7911]
[1729678507379,7.75145,2580.2,2579.9,0.7911]
[1729678508485,3.87583,2580.1,2579.9,0.7911]
[1729678510003,5.60570136,2580.2,2579.9,0.7911]
[1729678510208,3.8759,2580.1,2579.9,0.7911]
[1729678514327,5.60592136,2580.1,2579.8,0.01]
[1729678514529,3.8759,2580.1,2579.8,0.01]
[1729678515141,3.87611,2579.9,2579.8,0.01]
[1729678515299,3.87639,2579.8,2579.7,0.01]
[1729678515624,5.60641136,2579.8,2579.7,0.01]
[1729678515924,3.87639,2579.8,2579.7,0.01]
[1729678516094,5.60641136,2579.8,2579.7,0.01]
[1729678516631,5.60641136,2579.8,2579.5,0.8331]
[1729678517226,3.87639,2579.8,2579.7,0.01]
[1729678517411,5.60613136,2579.9,2579.7,0.01]
[1729678517618,9.48239136,2579.9,2579.7,0.01]
[1729678517793,5.60613136,2579.9,2579.7,0.01]
[1729678518529,9.48233136,2579.9,2579.7,0.01]
[1729678518824,5.60613136,2579.9,2579.7,0.01]
[1729678524912,2.07612136,2580.0,2579.7,0.01]
[1729678525114,1.73002136,2579.9,2579.7,0.01]
[1729678525327,5.60615136,2579.9,2579.7,0.01]
[1729678527017,1.73002136,2579.8,2579.7,0.01]
[1729678527444,5.60615136,2579.9,2579.7,0.01]
[1729678527776,3.87613,2579.9,2579.7,0.01]
[1729678529952,5.60615136,2579.9,2579.7,0.01]
[1729678530355,3.87613,2579.9,2579.7,0.01]
[1729678531518,5.60615136,2579.9,2579.7,0.01]
[1729678531949,3.87613,2579.9,2579.7,0.01]
[1729678532533,3.87613,2579.9,2579.7,0.00866993]
[1729678533675,5.60615136,2579.9,2579.7,0.00866993]
[1729678534173,3.87613,2579.9,2579.7,0.00866993]
[1729678534739,5.60615136,2579.9,2579.7,0.00866993]
[1729678535132,3.87613,2579.9,2579.7,0.00866993]
[1729678535573,5.60615136,2579.9,2579.7,0.00866993]
[1729678535955,9.48238136,2579.9,2579.7,0.00866993]
[1729678536590,9.48239136,2579.9,2579.7,0.00866993]
[1729678536771,5.60615136,2579.9,2579.7,0.00866993]
[1729678537647,3.87613,2579.9,2579.7,0.00866993]
[1729678542890,5.95225136,2579.9,2579.7,0.00866993]
[1729678543189,4.22223,2579.9,2579.7,0.00866993]
[1729678543985,3.87626,2579.8,2579.7,0.00866993]
[1729678545893,3.87626,2579.8,2579.4,0.782]
[1729678545894,5.60628136,2579.8,2579.4,0.782]
[1729678546092,5.60656136,2579.7,2579.5,0.00866993]
[1729678546800,3.87654,2579.7,2579.5,0.00866993]
[1729678547103,5.60656136,2579.7,2579.5,0.00866993]
[1729678547794,3.87654,2579.7,2579.5,0.00866993]
[1729678552097,5.60628136,2579.8,2579.5,0.00866993]
[1729678552881,5.60628136,2579.8,2579.5,0.00866993]
[1729678553189,9.48262136,2579.8,2579.5,0.00866993]
[1729678553531,5.60628136,2579.8,2579.5,0.00866993]
[1729678553667,9.48263136,2579.8,2579.5,0.00866993]
[1729678553866,5.60628136,2579.8,2579.5,0.00866993]
[1729678554101,9.48265136,2579.8,2579.5,0.00866993]
[1729678556004,1.73002136,2579.7,2579.5,0.00866993]
[1729678556205,5.60645136,2579.7,2579.5,0.00866993]
[1729678558186,3.87643,2579.7,2579.5,0.00866993]
[1729678558702,2.07612136,2579.8,2579.5,0.00866993]
[1729678559090,5.60635136,2579.8,2579.5,0.00866993]
[1729678559779,3.87606,2580.0,2579.5,0.00866993]
[1729678560119,9.48215136,2580.0,2579.6,0.8126]
[1729678560282,5.60608136,2580.0,2579.6,0.8126]
[1729678560483,3.87615,2579.9,2579.6,0.8126]
[1729678561715,5.60617136,2579.9,2579.6,0.8126]
[1729678562066,3.87615,2579.9,2579.6,0.8126]
[1729678563181,9.48236136,2579.9,2579.6,0.8126]
[1729678563399,3.87615,2579.9,2579.6,0.8126]
[1729678563922,3.87627,2579.8,2579.6,0.8126]
[1729678565128,1.73002136,2579.9,2579.6,0.8126]
[1729678565428,3.87628,2579.8,2579.6,0.8126]
[1729678566299,5.60630136,2579.8,2579.6,0.8126]
[1729678568129,3.87628,2579.8,2579.6,0.8126]
[1729678569405,3.87612,2579.9,2579.6,0.8126]
[1729678569737,0.60679615,2580.1,2579.6,0.8126]
[1729678569738,0.60679615,2580.1,2579.9,0.00866993]
[1729678569921,4.48262615,2580.1,2579.9,0.00866993]
[1729678570235,3.87583,2580.1,2579.9,0.00866993]
[1729678570895,5.60585136,2580.1,2579.9,0.00866993]
[1729678572634,3.87583,2580.1,2579.9,0.00866993]
[1729678572823,5.60585136,2580.1,2579.9,0.00866993]
[1729678573745,5.60598136,2580.0,2579.9,0.00866993]
[1729678574331,3.87596,2580.0,2579.9,0.00866993]
[1729678574537,5.60585136,2580.1,2579.9,0.00866993]
[1729678575014,3.87596,2580.0,2579.9,0.00866993]
[1729678575923,5.60598136,2580.0,2579.9,0.00866993]
[1729678576645,3.8765,2579.7,2579.5,0.00866993]
[1729678576942,5.60652136,2579.7,2579.5,0.00866993]
[1729678577143,3.87657,2579.6,2579.5,0.00866993]
[1729678577724,5.60641136,2579.8,2579.5,0.00866993]
[1729678578104,1.73002136,2579.7,2579.5,0.00866993]
[1729678578308,5.60648136,2579.7,2579.5,0.00866993]
[1729678578508,3.87646,2579.7,2579.5,0.00866993]
[1729678581548,5.60648136,2579.7,2579.5,0.00866993]
[1729678581853,3.87646,2579.7,2579.5,0.00866993]
[1729678582722,5.60648136,2579.7,2579.5,0.00866993]
[1729678583124,3.87646,2579.7,2579.5,0.00866993]
[1729678583663,5.60648136,2579.7,2579.5,0.00866993]
[1729678585057,3.87646,2579.7,2579.5,0.00866993]
[1729678586263,5.60648136,2579.7,2579.5,0.00866993]
[1729678586773,9.48300136,2579.7,2579.5,0.00866993]
[1729678586928,9.48298136,2579.7,2579.5,0.00866993]
[1729678587128,5.60648136,2579.7,2579.5,0.00866993]
[1729678587324,1.73002136,2579.6,2579.5,0.00866993]
[1729678587738,5.60648136,2579.7,2579.5,0.00866993]
[1729678588023,5.60659136,2579.6,2579.5,0.00866993]
[1729678620037,3.87657,2579.6,2579.5,0.00866993]
[1729678620608,5.60659136,2579.6,2579.5,0.00866993]
[1729678622101,3.87657,2579.6,2579.5,0.00866993]
[1729678622542,5.60659136,2579.6,2579.5,0.00866993]
[1729678626769,3.87657,2579.6,2579.5,0.00866993]
[1729678627818,5.60659136,2579.6,2579.5,0.00866993]
[1729678638581,3.87687,2579.4,2579.3,0.7683]
[1729678640295,3.87657,2579.6,2579.3,0.7683]
[1729678640296,5.60659136,2579.6,2579.3,0.7683]
[1729678640456,3.87673,2579.5,2579.3,0.7683]
[1729678649098,5.60689136,2579.4,2579.2,0.00866993]
[1729678649405,5.60716136,2579.3,2579.2,0.00866993]
[1729678649763,3.87714,2579.3,2579.2,0.00866993]
[1729678650502,5.60689136,2579.4,2579.2,0.00866993]
[1729678650503,3.87687,2579.4,2579.2,0.00866993]
[1729678650668,7.75384,2579.4,2579.2,0.00866993]
[1729678650997,3.87687,2579.4,2579.2,0.00866993]
[1729678651186,7.75386,2579.4,2579.2,0.00866993]
[1729678652283,3.87687,2579.4,2579.2,0.00866993]
[1729678652601,7.75385,2579.4,2579.2,0.00866993]
[1729678652903,7.75383,2579.4,2579.2,0.00866993]
[1729678653608,9.48385136,2579.4,2579.2,0.00866993]
[1729678653774,5.60689136,2579.4,2579.2,0.00866993]
[1729678653976,7.75383,2579.4,2579.2,0.00866993]
[1729678654612,3.87687,2579.4,2579.2,0.00866993]
[1729678658690,5.60689136,2579.4,2579.2,0.00866993]
[1729678659509,9.48387136,2579.4,2579.2,0.00866993]
[1729678659681,5.60689136,2579.4,2579.2,0.00866993]
[1729678660083,9.48389136,2579.4,2579.2,0.00866993]
[1729678660286,5.60689136,2579.4,2579.2,0.00866993]
[1729678660704,1.73002136,2579.3,2579.2,0.00866993]
[1729678660874,5.60689136,2579.4,2579.2,0.00866993]
[1729678661887,3.87687,2579.4,2579.2,0.00866993]
[1729678666429,5.60689136,2579.4,2579.2,0.00866993]
[1729678666795,3.87702,2579.3,2579.2,0.00866993]
[1729678667190,5.60689136,2579.4,2579.2,0.00866993]
[1729678669036,9.48389136,2579.4,2579.2,0.00866993]
[1729678669191,5.60704136,2579.3,2579.2,0.00866993]
[1729678671032,5.60704136,2579.3,2579.1,0.00866993]
[1729678671338,3.87702,2579.3,2579.1,0.00866993]
[1729678672696,5.60704136,2579.3,2579.1,0.00866993]
[1729678673895,3.87702,2579.3,2579.1,0.00866993]
[1729678676444,5.60704136,2579.3,2579.1,0.00866993]
[1729678679346,1.73002136,2579.2,2579.1,0.00866993]
[1729678680006,5.60719136,2579.2,2579.1,0.00866993]
[1729678680203,5.60719136,2579.2,2578.9,0.00866993]
[1729678680204,3.87741,2579.1,2578.9,0.00866993]
[1729678680443,1.73002136,2579.0,2578.9,0.00866993]
[1729678680648,5.60749136,2579.0,2578.9,0.00866993]
[1729678680843,3.87807,2578.6,2578.4,2.38128878]
[1729678681044,1.73002136,2578.5,2578.4,0.76626993]
[1729678681542,1.73002136,2578.6,2578.4,0.76626993]
[1729678681705,7.22367,2579.0,2578.6,0.00866993]
[1729678681905,3.0,2579.1,2578.8,0.76626993]
[1729678682149,0.3461,2579.5,2579.2,0.7594]
[1729678682150,3.87678,2579.5,2579.2,0.7594]
[1729678682331,0.3461,2579.7,2579.3,0.00866993]
[1729678682332,1.73002136,2579.6,2579.3,0.00866993]
[1729678682531,3.87679,2579.5,2579.3,0.00866993]
[1729678682842,3.87657,2579.6,2579.3,0.00866993]
[1729678683438,5.99618488,2579.8,2579.3,0.00866993]
[1729678683602,5.99618488,2579.8,2579.5,0.00866993]
[1729678683603,3.87641,2579.7,2579.5,0.00866993]
[1729678683946,3.87641,2579.7,2579.5,0.77076993]
[1729678684349,5.60643136,2579.7,2579.5,0.77076993]
[1729678684724,3.87641,2579.7,2579.5,0.77076993]
[1729678685052,0.73586909,2580.2,2579.7,0.00866993]
[1729678685244,0.73586909,2580.2,2579.9,0.00866993]
[1729678685245,0.38976909,2580.2,2579.9,0.00866993]
[1729678685609,5.99555045,2580.2,2579.9,0.00866993]
[1729678685952,4.26552909,2580.2,2579.9,0.00866993]
[1729678686747,5.99555045,2580.2,2579.9,0.00866993]
[1729678686955,4.26552909,2580.2,2579.9,0.00866993]
[1729678687650,5.99555045,2580.2,2579.9,0.00866993]
[1729678690313,1.73002136,2580.1,2579.9,0.00866993]
[1729678690509,5.99555045,2580.2,2579.9,0.00866993]
[1729678691647,2.11979045,2580.2,2579.9,0.00866993]
[1729678692352,5.99546045,2580.2,2579.9,0.00866993]
[1729678694856,0.38976909,2580.2,2580.1,0.00866993]
[1729678695720,2.11979045,2580.2,2580.1,0.00866993]
[1729678695915,0.38976909,2580.2,2580.1,0.00866993]
[1729678696120,2.11979045,2580.2,2580.1,0.00866993]
[1729678696321,0.38976909,2580.2,2580.1,0.00866993]
[1729678697333,2.11979045,2580.2,2580.1,0.00866993]
[1729678697855,0.38976909,2580.2,2580.1,0.00866993]
[1729678698043,2.11979045,2580.2,2580.1,0.00866993]
[1729678701848,5.99545045,2580.2,2580.1,0.00866993]
[1729678702047,0.38976909,2580.2,2580.1,0.00866993]
[1729678702432,0.38976909,2580.2,2580.1,0.80306993]
[1729678703174,2.11979045,2580.2,2580.1,0.80306993]
[1729678703354,4.26542909,2580.2,2580.1,0.80306993]
[1729678703687,5.99545045,2580.2,2580.1,0.80306993]
[1729678704377,4.26542909,2580.2,2580.1,0.80306993]
[1729678705473,0.38976909,2580.2,2580.1,0.80306993]
[1729678707677,3.87512,2580.6,2580.4,0.8057]
[1729678707861,3.87515,2580.6,2580.4,0.8057]
[1729678708068,5.60517136,2580.6,2580.4,0.8057]
[1729678710156,3.87515,2580.6,2580.4,0.8057]
[1729678710358,5.60517136,2580.6,2580.4,0.8057]
[1729678710587,1.73002136,2580.6,2580.4,0.8057]
[1729678712579,3.87494,2580.7,2580.5,0.00866993]
[1729678712580,1.73002136,2580.7,2580.5,0.00866993]
[1729678713549,1.73002136,2580.6,2580.5,0.00866993]
[1729678716183,1.73002136,2580.7,2580.5,0.00866993]
[1729678717587,1.73002136,2580.6,2580.5,0.00866993]
[1729678717950,5.60494136,2580.7,2580.5,0.00866993]
[1729678720651,1.73002136,2580.6,2580.5,0.00866993]
[1729678721891,5.60494136,2580.7,2580.5,0.00866993]
[1729678722790,3.87492,2580.7,2580.5,0.00866993]
[1729678723085,5.60478136,2580.8,2580.5,0.00866993]
[1729678723860,1.73002136,2580.7,2580.5,0.00866993]
[1729678725187,5.60495136,2580.7,2580.5,0.00866993]
[1729678730862,1.73002136,2580.6,2580.5,0.00866993]
[1729678732885,5.60495136,2580.7,2580.5,0.00866993]
[1729678735421,3.87493,2580.7,2580.5,0.00866993]
[1729678735599,5.60495136,2580.7,2580.5,0.00866993]
[1729678737125,3.87493,2580.7,2580.5,0.00866993]
[1729678737983,5.60495136,2580.7,2580.5,0.00866993]
[1729678739908,3.87493,2580.7,2580.5,0.00866993]
[1729678741024,3.87506,2580.6,2580.5,0.00866993]
[1729678741208,3.87521,2580.5,2580.3,0.00866993]
[1729678741409,3.87579,2580.2,2580.1,0.00866993]
[1729678741605,5.60581136,2580.2,2580.1,0.00866993]
[1729678742949,5.95171136,2580.3,2580.1,0.00866993]
[1729678743257,5.60541136,2580.4,2580.1,0.00866993]
[1729678743547,0.38969499,2580.7,2580.5,0.00866993]
[1729678743713,4.26463499,2580.7,2580.5,0.00866993]
[1729678744713,5.99465635,2580.7,2580.5,0.00866993]
[1729678749725,1.73002136,2580.6,2580.5,0.00866993]
[1729678750331,5.99465635,2580.7,2580.5,0.00866993]
[1729678751462,1.73002136,2580.6,2580.5,0.00866993]
[1729678753681,0.38969499,2580.7,2580.5,0.00866993]
[1729678753886,0.38969499,2580.7,2580.5,0.83726993]
[1729678754338,0.38969499,2580.7,2580.5,1.30854492]
[1729678756247,2.11971635,2580.7,2580.5,0.83726993]
[1729678756578,4.26465499,2580.7,2580.5,0.83726993]
[1729678756876,3.87485,2580.8,2580.5,0.83726993]
[1729678757060,6.87468,2580.9,2580.5,0.83726993]
[1729678757455,3.87476,2580.8,2580.5,0.83726993]
[1729678760185,7.74962,2580.8,2580.5,0.83726993]